[Event "French-ch U16-U18 2024"]
[Site "Agen"]
[Date "2024.04.15"]
[Round "3.8"]
[White "Vallee, Louis"]
[Black "Despierres, Arthur"]
[Result "1-0"]
[ECO "E71"]
[WhiteElo "2270"]
[BlackElo "1988"]
[Annotator "RC"]
[PlyCount "151"]
[EventDate "2024.04.14"]
[EventType "swiss"]
[EventCountry "FRA"]
[SourceTitle "playchess.com"]
[Source "ChessBase"]
[SourceQuality "1"]
[TimeControl "5400+30"]

1. d4 {[%emt 1:31:00]} Nf6 {[%emt 0:03:13]} 2. c4 {[%emt 0:00:00]} g6 {[%emt 0:00:02]} 3. Nc3 {[%emt 0:00:00]} Bg7 {[%emt 0:00:03]} 4. e4 {[%emt 0:00:00]} d6 {[%emt 0:00:05]} 5. h3 {[%emt 0:00:00]} O-O {[%emt 0:00:19]} 6. Be3 {[%emt 0:00:00]} e5 {[%emt 0:00:49]} 7. d5 {[%emt 0:00:00]} a5 {[%emt 0:00:48]} 8. g4 {[%emt 0:00:00]} Na6 {[%emt 0:01:02]} 9. Nge2 {[%emt 0:00:00]} Ne8 {[%emt 0:09:53]} 10. Ng3 {[%emt 0:00:00]} Bd7 {[%emt 0:09:00]} 11. Qd2 {[%emt 0:00:00]} Nc5 {[%emt 0:19:57]} 12. O-O-O {[%emt 0:00:00]} Qc8 {[%emt 0:02:52]} 13. g5 {[%emt 0:00:00]} f5 {[%emt 0:04:24]} 14. Bxc5 {[%emt 0:00:00]} dxc5 {[%emt 0:00:29]} 15. h4 {[%emt 0:00:00]} f4 {[%emt 0:04:58]} 16. Nge2 {[%emt 0:00:00]} Bg4 {[%emt 0:02:06]} 17. Qd3 {[%emt 0:00:00]} f3 {[%emt 0:06:13]} 18. Ng3 {[%emt 0:00:00]} Nd6 {[%emt 0:04:25]} 19. Qe3 {[%emt 0:00:00]} b6 {[%emt 0:02:31]} 20. Bd3 {[%emt 0:00:00]} Rf4 {[%emt 0:02:59]} 21. Nf1 {[%emt 0:00:00]} h6 {[%emt 0:03:48]} 22. Rg1 {[%emt 0:00:00]} hxg5 {[%emt 0:03:06]} 23. hxg5 {[%emt 0:00:00]} Bh5 {[%emt 0:07:29]} 24. Rg3 {[%emt 0:00:00]} Qd7 {[%emt 0:01:25]} 25. Nd2 {[%emt 0:00:00]} Raf8 {[%emt 0:00:48]} 26. Rh1 {[%emt 0:00:00]} Bg4 {[%emt 0:07:08]} 27. Rhg1 {[%emt 0:03:10]} R8f7 {[%emt 0:01:29]} 28. Bf1 {[%emt 0:01:32]} Bf8 {[%emt 0:00:59]} 29. Kc2 {[%emt 0:00:16]} Kg7 {[%emt 0:01:42]} 30. Rxg4 {[%emt 0:06:02]} Rxg4 {[%emt 0:00:13]} 31. Bh3 {[%emt 0:00:06]} Rxe4 {[%emt 0:01:08]} 32. Ndxe4 {[%emt 0:01:18]} Qxh3 {[%emt 0:00:11]} 33. Nxd6 {[%emt 0:01:07]} Bxd6 {[%emt 0:00:09]} 34. Rg3 {[%emt 0:00:18]} Qf5+ {[%emt 0:00:43]} 35. Ne4 {[%emt 0:00:12]} Be7 {[%emt 0:00:46]} 36. Kc3 {[%emt 0:01:05]} Qf4 {[%emt 0:00:36]} 37. Kd3 {[%emt 0:00:58]} a4 {[%emt 0:00:35]} 38. Nd2 {[%emt 0:01:18]} Qd4+ {[%emt 0:00:30]} 39. Qxd4 {[%emt 0:00:07]} exd4 {[%emt 0:00:10]} 40. Nxf3 {[%emt 0:00:21]} Bd6 {[%emt 0:00:29]} 41. Rh3 {[%emt 0:00:07]} Rf5 {[%emt 0:00:18]} 42. Ke4 {[%emt 0:00:44]} Rf4+ {[%emt 0:00:10]} 43. Kd3 {[%emt 0:00:01]} Rf5 {[%emt 0:00:28]} 44. Ke4 {[%emt 0:01:42]} Bf4 {[%emt 0:01:06]} 45. Nh4 {[%emt 0:01:36]} Rf7 {[%emt 0:00:07]} 46. Ng2 {[%emt 0:00:00]} Bxg5 {[%emt 0:00:18]} 47. f4 {[%emt 0:00:01]} Be7 {[%emt 0:00:49]} 48. Ra3 {[%emt 0:00:29]} Bd6 {[%emt 0:00:26]} 49. Rxa4 {[%emt 0:00:13]} Re7+ {[%emt 0:00:17]} 50. Kd3 {[%emt 0:00:44]} Kf6 {[%emt 0:00:57]} 51. Ra8 {[%emt 0:00:55]} Kf5 {[%emt 0:00:53]} 52. Rf8+ {[%emt 0:00:15]} Kg4 {[%emt 0:00:18]} 53. Rf6 {[%emt 0:00:12]} g5 {[%emt 0:00:45]} 54. fxg5 {[%emt 0:00:24]} Kxg5 {[%emt 0:00:09]} 55. Rf1 {[%emt 0:01:02]} Bg3 {[%emt 0:00:40]} 56. a3 {[%emt 0:00:30]} Kg4 {[%emt 0:00:42]} 57. b4 {[%emt 0:00:43]} Kh3 {[%emt 0:00:32]} 58. Nf4+ {[%emt 0:00:07]} Bxf4 {[%emt 0:00:02]} 59. Rxf4 {[%emt 0:00:07]} Re3+ {[%emt 0:00:10]} 60. Kd2 {[%emt 0:00:30]} Rxa3 {[%emt 0:00:14]} 61. b5 {[%emt 0:01:16]} Ra2+ {[%emt 0:01:27]} 62. Kd3 {[%emt 0:00:17]} Ra3+ {[%emt 0:00:21]} 63. Kd2 {[%emt 0:00:06]} Ra2+ {[%emt 0:00:07]} 64. Kd1 {[%emt 0:00:59]} Ra1+ {[%emt 0:01:02]} 65. Kc2 {[%emt 0:00:00]} Ra2+ {[%emt 0:00:29]} 66. Kb3 {[%emt 0:00:41]} Ra8 {[%emt 0:00:07]} 67. Rf7 {[%emt 0:00:10]} Rc8 {[%emt 0:00:09]} 68. Rg7 {[%emt 0:00:20]} Kh4 {[%emt 0:00:13]} 69. d6 {[%emt 0:01:12]} cxd6 {[%emt 0:00:15]} 70. Rb7 {[%emt 0:00:05]} d5 {[%emt 0:01:42]} 71. Rxb6 {[%emt 0:01:03]} dxc4+ {[%emt 0:00:43]} 72. Kxc4 {[%emt 0:00:01]} Rd8 {[%emt 0:01:02]} 73. Kd3 {[%emt 0:01:38]} c4+ 74. Kd2 {[%emt 0:00:30]} d3 {[%emt 0:01:00]} 75. Rc6 {[%emt 0:00:30]} Rb8 {[%emt 0:00:30]} 76. Rxc4+ {[%emt 0:00:30]} 1-0

[Event "French-ch U16-U18 2024"]
[Site "Agen"]
[Date "2024.04.15"]
[Round "3.9"]
[White "Trevisiol, Antoine"]
[Black "Brion Lacherest, Nathan"]
[Result "1-0"]
[ECO "D35"]
[WhiteElo "2235"]
[BlackElo "1978"]
[Annotator "RC"]
[PlyCount "141"]
[EventDate "2024.04.14"]
[EventType "swiss"]
[EventCountry "FRA"]
[SourceTitle "playchess.com"]
[Source "ChessBase"]
[SourceQuality "1"]
[TimeControl "5400+30"]

1. d4 {[%emt 0:00:04]} d5 {[%emt 0:00:06]} 2. c4 {[%emt 0:00:11]} e6 {[%emt 0:00:05]} 3. Nc3 {[%emt 0:00:13]} Be7 {[%emt 0:00:07]} 4. cxd5 {[%emt 0:01:51]} exd5 {[%emt 0:00:08]} 5. Bf4 {[%emt 0:01:06]} c6 {[%emt 0:01:13]} 6. Qc2 {[%emt 0:01:54]} Nf6 {[%emt 0:01:05]} 7. e3 {[%emt 0:00:29]} O-O {[%emt 0:00:53]} 8. Bd3 {[%emt 0:00:40]} Re8 {[%emt 0:02:59]} 9. Nge2 {[%emt 0:01:15]} Nbd7 {[%emt 0:02:29]} 10. O-O {[%emt 0:02:15]} Nf8 {[%emt 0:02:24]} 11. Bg3 {[%emt 0:08:32]} Ne6 {[%emt 0:02:43]} 12. f3 {[%emt 0:01:52]} g6 {[%emt 0:05:34]} 13. Rad1 {[%emt 0:03:31]} Ng7 {[%emt 0:04:23]} 14. Kh1 {[%emt 0:03:28]} Bd6 {[%emt 0:12:06]} 15. Bf2 {[%emt 0:02:50]} Bb8 {[%emt 0:03:53]} 16. Bg1 {[%emt 0:03:07]} Qe7 {[%emt 0:21:45]} 17. e4 {[%emt 0:08:08]} Be6 {[%emt 0:01:05]} 18. e5 {[%emt 0:03:07]} Nd7 {[%emt 0:00:28]} 19. f4 {[%emt 0:02:17]} f5 {[%emt 0:05:14]} 20. Na4 {[%emt 0:04:54]} Rc8 {[%emt 0:01:30]} 21. Rc1 {[%emt 0:01:33]} a6 {[%emt 0:04:28]} 22. Nc5 {[%emt 0:13:03]} b5 {[%emt 0:02:53]} 23. a4 {[%emt 0:07:24]} Nxc5 {[%emt 0:04:40]} 24. dxc5 {[%emt 0:01:57]} Bd7 {[%emt 0:03:12]} 25. Ra1 {[%emt 0:01:58]} Bc7 {[%emt 0:00:36]} 26. b4 {[%emt 0:04:23]} Ne6 {[%emt 0:02:14]} 27. Ra2 {[%emt 0:01:13]} Qf8 {[%emt 0:02:16]} 28. Rfa1 {[%emt 0:01:18]} Rab8 {[%emt 0:01:44]} 29. Be3 {[%emt 0:01:26]} Kh8 {[%emt 0:01:50]} 30. g3 {[%emt 0:00:50]} Qf7 {[%emt 0:01:01]} 31. Kg1 {[%emt 0:01:42]} Qf8 {[%emt 0:00:24]} 32. Kf2 {[%emt 0:00:28]} Qh6 {[%emt 0:00:52]} 33. Kg2 {[%emt 0:01:13]} Bxe5 {[%emt 0:01:01]} 34. Bc1 {[%emt 0:06:34]} Bf6 {[%emt 0:00:53]} 35. axb5 {[%emt 0:00:27]} axb5 {[%emt 0:00:16]} 36. Ra7 {[%emt 0:00:24]} Nc7 {[%emt 0:04:01]} 37. R1a3 {[%emt 0:02:29]} Qg7 {[%emt 0:00:51]} 38. Ng1 {[%emt 0:00:40]} Qf8 {[%emt 0:00:45]} 39. Nf3 {[%emt 0:01:07]} Ra8 {[%emt 0:01:05]} 40. Bb2 {[%emt 0:01:27]} Rxa7 {[%emt 0:01:11]} 41. Rxa7 {[%emt 0:00:30]} Bxb2 {[%emt 0:00:31]} 42. Qxb2+ {[%emt 0:00:00]} Qg7 {[%emt 0:00:05]} 43. Ne5 {[%emt 0:00:15]} Be8 {[%emt 0:00:09]} 44. Qa1 {[%emt 0:00:40]} Kg8 {[%emt 0:02:20]} 45. h4 {[%emt 0:00:58]} Qe7 {[%emt 0:01:59]} 46. Qa5 {[%emt 0:00:22]} Qd8 {[%emt 0:00:47]} 47. Qb6 {[%emt 0:03:48]} Ne6 {[%emt 0:00:55]} 48. Bxb5 {[%emt 0:01:32]} Qxb6 {[%emt 0:00:34]} 49. cxb6 {[%emt 0:00:09]} cxb5 {[%emt 0:00:41]} 50. b7 {[%emt 0:00:17]} Rb8 {[%emt 0:00:09]} 51. Ra8 {[%emt 0:00:12]} Rxb7 {[%emt 0:00:04]} 52. Rxe8+ {[%emt 0:00:07]} Nf8 {[%emt 0:00:09]} 53. Rd8 {[%emt 0:00:31]} Kg7 {[%emt 0:00:33]} 54. Rxd5 {[%emt 0:00:30]} Ne6 {[%emt 0:00:32]} 55. Rd6 {[%emt 0:00:50]} Nf8 {[%emt 0:01:07]} 56. Kf3 {[%emt 0:00:40]} Rb8 {[%emt 0:00:43]} 57. Ke3 {[%emt 0:00:32]} Ra8 {[%emt 0:00:39]} 58. Kd4 {[%emt 0:01:27]} Ra1 {[%emt 0:00:35]} 59. Kc5 {[%emt 0:00:27]} Rg1 {[%emt 0:00:25]} 60. Kxb5 {[%emt 0:01:35]} Rxg3 {[%emt 0:00:06]} 61. Kc4 {[%emt 0:01:22]} Rg1 {[%emt 0:00:18]} 62. b5 {[%emt 0:00:11]} h6 {[%emt 0:00:32]} 63. b6 {[%emt 0:00:13]} g5 {[%emt 0:00:05]} 64. hxg5 {[%emt 0:00:36]} hxg5 {[%emt 0:00:04]} 65. fxg5 {[%emt 0:00:08]} f4 {[%emt 0:00:06]} 66. Rd3 {[%emt 0:01:41]} Rb1 {[%emt 0:01:04]} 67. Rb3 {[%emt 0:00:30]} Rxb3 {[%emt 0:00:40]} 68. Kxb3 {[%emt 0:00:01]} Nd7 {[%emt 0:00:08]} 69. Nxd7 {[%emt 0:00:30]} f3 {[%emt 0:00:04]} 70. Nf6 {[%emt 0:00:28]} Kg6 {[%emt 0:00:27]} 71. Ne4 {[%emt 0:00:06]} 1-0

[Event "French-ch U16-U18 2024"]
[Site "Agen"]
[Date "2024.04.15"]
[Round "3.10"]
[White "Bustos Salinas, Thomas"]
[Black "Boumrar, Ayrad"]
[Result "1/2-1/2"]
[ECO "E51"]
[WhiteElo "1990"]
[BlackElo "2191"]
[Annotator "TA"]
[PlyCount "147"]
[EventDate "2024.04.14"]
[EventType "swiss"]
[EventCountry "FRA"]
[SourceTitle "playchess.com"]
[Source "ChessBase"]
[SourceQuality "1"]
[TimeControl "5400+30"]

{[%evp 13,147,-5,0,-7,16,11,24,3,27,24,27,30,33,38,27,31,19,14,27,31,34,19,25,12,4,9,8,14,10,11,24,0,0,0,0,0,0,0,90,79,87,93,79,89,73,52,52,47,58,29,23,50,19,0,0,0,166,164,160,153,159,142,183,183,183,183,400,402,406,364,405,395,383,330,12202,8879,7848,7020,29978,29979,29979,29974,29975,29971,29971,29972,29972,29971,29970,29963,7020,7019,7019,7019,7019,7019,7019,6645,5108,5089,4608,3753,29975,7019,7019,703,7020,0,0,0,0,0,29978,29979,29981,29980,29980,29979,29979,7026,7026,7026,7026,681,681,667,660,645,6630,0,0,0,0,0,0,0]} 1. d4 {[%emt 0:17:37]} Nf6 {[%emt 0:01:21]} 2. c4 {[%emt 0:00:10]} e6 {[%emt 0:00:04]} 3. Nc3 {[%emt 0:00:05]} Bb4 {[%emt 0:00:04]} 4. e3 {[%emt 0:00:05]} O-O {[%emt 0:00:28]} 5. Bd2 {[%emt 0:00:06]} d5 {[%emt 0:01:09]} 6. Nf3 {[%emt 0:00:07]} b6 {[%emt 0:01:18]} 7. cxd5 {[%emt 0:00:08]} exd5 {[%emt 0:00:08]} 8. Bd3 {[%emt 0:00:14]} Ba6 {[%emt 0:07:13]} 9. Bxa6 {[%emt 0:06:04]} Nxa6 {[%emt 0:00:23]} 10. O-O {[%emt 0:00:40] White has an edge.} Nb8 {[%emt 0:06:33][%cal Ba6b8,Bb8d7,Bd7b6][%mdl 32]} 11. Rc1 {[%emt 0:02:48]} Nbd7 {[%emt 0:08:30]} 12. Nb5 {[%emt 0:10:10][%csl LRb4,LRc7]} Bxd2 {[%emt 0:00:17]} 13. Qxd2 {[%emt 0:00:08]} c5 {[%emt 0:03:46]} 14. dxc5 {[%emt 0:00:44]} bxc5 {[%emt 0:00:55]} 15. Nc3 {[%emt 0:05:36]} Nb6 {[%emt 0:01:54]} 16. Rfd1 {[%emt 0:07:45]} Qe7 {[%emt 0:01:43]} 17. Qc2 {[%emt 0:07:51]} Rac8 {[%emt 0:12:11]} 18. Na4 {[%emt 0:06:10]} Nxa4 {[%emt 0:01:36]} 19. Qxa4 {[%emt 0:00:07]} Rfd8 {[%emt 0:01:20]} 20. h3 {[%emt 0:02:45]} h6 {[%emt 0:00:36]} 21. Rc2 {[%emt 0:02:59][%cal Bc1c2,Bc2d2,Bd2d3,Bd3d5][%mdl 32]} Rc7 {[%emt 0:07:09]} 22. Rcd2 {[%emt 0:03:21]} Rcd7 {[%emt 0:02:25]} 23. Qf4 {[%emt 0:06:39]} Ne4 {[%emt 0:03:51]} 24. Rd3 {[%emt 0:01:59]} Rd6 {[%emt 0:07:56]} 25. b3 {[%emt 0:07:20]} Rf6 {[%emt 0:04:09] [#]} (25... Qd7 $11 {keeps the balance.}) 26. Rxd5 $1 $16 {[%emt 0:05:22]} Rxf4 {[%emt 0:03:11]} 27. Rxd8+ {[%emt 0:00:05]} Kh7 {[%emt 0:00:03]} 28. exf4 {[%emt 0:00:15]} Qf6 {[%emt 0:01:22][%cal Of6a6]} 29. R8d7 {[%emt 0:03:15] Re1 would now be deadly.} Qb2 {[%emt 0:01:41]} 30. Nd2 $1 {[%emt 0:00:30]} (30. Rxf7 Qxf2+ 31. Kh1 a5 $11 (31... Ng3+ 32. Kh2 $11)) 30... Nf6 {[%emt 0:00:08]} 31. Rd3 {[%emt 0:03:28]} (31. Rxa7 Qc2 32. Re1 Qxd2 $11) (31. Rxf7 Qxa2 (31... Qc2 32. Re1 $11) 32. Nc4 Qxb3 $11) 31... Qxa2 {[%emt 0:00:11]} 32. Rc1 {[%emt 0:00:49]} Qb2 {[%emt 0:02:13]} 33. Rxc5 {[%emt 0:00:50] Kh2 is the strong threat.} Ne4 {[%emt 0:00:19]} 34. Rcd5 {[%emt 0:00:30]} (34. Nxe4 $2 Qb1+ 35. Kh2 Qxd3 $19) 34... Nxd2 {[%emt 0:00:05]} (34... Qa1+ $11 {and Black stays safe.} 35. Kh2 (35. Nf1 Qe1 $17) 35... Nxf2) 35. Rxd2 $18 {[%emt 0:00:04]} Qxb3 $11 {[%emt 0:00:03][%cal Oa7a5][%mdl 4096] Endgame. KQ-KRR} 36. g3 {[%emt 0:00:37]} Qb4 {[%emt 0:01:48]} 37. Rd1 {[%emt 0:00:30]} a5 {[%emt 0:01:00][%cal Ba7a5,Ba5a4][%mdl 32]} 38. Ra1 $1 {[%emt 0:00:15]} a4 {[%emt 0:00:34]} 39. Rd3 {[%emt 0:00:06]} g5 $2 {[%emt 0:02:35] [#]} (39... Qb5 40. Rda3 Qh5) 40. fxg5 $1 $18 {[%emt 0:00:27]} hxg5 {[%emt 0:00:20]} 41. Rda3 {[%emt 0:00:09]} Kg6 {[%emt 0:01:13]} 42. Rxa4 {[%emt 0:00:06]} Qd2 {[%emt 0:00:27]} 43. Ra6+ {[%emt 0:00:31]} f6 $2 {[%emt 0:00:01]} (43... Kg7 44. R6a5 Kg6) 44. Rb1 {[%emt 0:00:39]} Qd7 {[%emt 0:04:55]} 45. Rbb6 {[%emt 0:00:21]} Qxh3 {[%emt 0:00:29]} 46. Rxf6+ {[%emt 0:00:04]} Kg7 {[%emt 0:00:11]} 47. Rg6+ {[%emt 0:00:40]} Kf7 {[%emt 0:00:01]} 48. Rh6 {[%emt 0:00:21]} Qc8 {[%emt 0:00:31]} 49. Ra7+ {[%emt 0:01:03]} Kg8 {[%emt 0:00:09]} 50. Rg6+ {[%emt 0:00:54]} Kh8 {[%emt 0:00:11]} 51. Rb6 {[%emt 0:00:27]} (51. Rxg5 Qc1+ 52. Kh2 Qxg5 $11) 51... g4 {[%emt 0:00:33]} 52. Kh2 {[%emt 0:00:48]} Qf8 {[%emt 0:00:31]} 53. Kg2 {[%emt 0:01:31]} Qc8 {[%emt 0:00:55] Prevents Rc7.} 54. Rh6+ {[%emt 0:00:39]} Kg8 {[%emt 0:00:03]} 55. Rhh7 {[%emt 0:00:20]} Qc6+ {[%emt 0:01:19]} 56. Kg1 {[%emt 0:00:32] White threatens Rag7+ and mate.} Qc1+ {[%emt 0:02:28] [#]} 57. Kh2 $1 {[%emt 0:00:34]} Qb2 {[%emt 0:00:29] Prevents Rag7+.} 58. Rhf7 {[%emt 0:01:10]} (58. Kg2 $142 Qf6 59. Rhc7 Qf8 60. Re7 Kh8 61. Rf7 Qg8 62. Kh1 Qd8 63. Rh7+ Kg8 64. Rag7+ Kf8 65. Rh8+ (65. Rxg4 Qd1+ 66. Kh2 Qxg4 $17) 65... Kxg7 66. Rxd8) 58... Qb6 {[%emt 0:03:00]} 59. Rg7+ {[%emt 0:00:00]} (59. Rac7 $142 Qd4 60. Rf4) 59... Kh8 {[%emt 0:00:18]} 60. Kg1 $2 {[%emt 0:00:20]} (60. Rh7+ $18 Kg8 61. Rag7+ Kf8 62. Rf7+ (62. Rxg4 Qxf2+ 63. Kh3 Qf1+ 64. Kh2 Qe2+ 65. Kh3 Qf1+ 66. Kh2 Qe2+ 67. Kh3 Qf1+ $11) 62... Kg8 63. Rhg7+ Kh8 64. Rxg4) 60... Qb1+ $11 {[%emt 0:00:25]} 61. Kg2 {[%emt 0:00:32][%cal Og7e7] Threatening mate with Rge7!} Qe4+ {[%emt 0:00:07]} 62. Kh2 {[%emt 0:00:10] Rge7 would kill now.} Qe6 $2 {[%emt 0:10:42][%mdl 8192]} (62... Qh1+ $11 63. Kxh1) 63. Rgc7 {[%emt 0:00:23]} Qg8 {[%emt 0:00:00]} 64. Kg1 {[%emt 0:00:11]} Qf8 {[%emt 0:00:00]} 65. Rcb7 {[%emt 0:00:33]} Kg8 {[%emt 0:00:00]} 66. Rb5 {[%emt 0:00:57]} (66. Re7 $142 Kh8 67. Rf7 Qe8 68. Rh7+ Kg8 69. Rag7+ Kf8 70. Rh8+ (70. Rxg4 Qe1+ 71. Kg2 Qc1 $18) 70... Kxg7 71. Rxe8) 66... Qc8 $18 {[%emt 0:00:00]} 67. Rg5+ {[%emt 0:00:17]} Kh8 {[%emt 0:00:00]} 68. Rh5+ {[%emt 0:00:55]} (68. Raa5 $142 Kh7 69. Rh5+ Kg6 70. Rhc5) 68... Kg8 {[%emt 0:00:00]} 69. Raa5 {[%emt 0:00:17]} Qc1+ {[%emt 0:00:00]} 70. Kh2 {[%emt 0:00:09]} Qc2 {[%emt 0:00:00]} 71. Rag5+ $2 {[%emt 0:00:04]} (71. Raf5 $18 Qe2 72. Rf4) 71... Kf7 $11 {[%emt 0:00:00] The position is equal.} 72. Rf5+ {[%emt 0:01:00]} (72. Kg2 $5 Qe4+ $8 73. Kh2 $11) 72... Kg6 $1 {[%emt 0:00:00]} 73. Rhg5+ {[%emt 0:00:07]} Kh6 {[%emt 0:00:00]} 74. Rh5+ {[%emt 0:01:18] Weighted Error Value: White=0.05 (flawless) /Black=0.36.  Loses game:     	---       	Black=2      Mistake:       	---       	Black=3      Inaccurate:     	White=1     	---        OK:         	White=16    	Black=15     Best:        	White=3     	Black=4      Strong:       	White=4     	Black=1} (74. Kg2 $5 Qe4+ $8 75. Kh2 $11) 1/2-1/2

[Event "French-ch U16-U18 2024"]
[Site "Agen"]
[Date "2024.04.15"]
[Round "3.11"]
[White "Diez, Agathe"]
[Black "Hamm, Gabrielle"]
[Result "1-0"]
[ECO "D13"]
[WhiteElo "1954"]
[BlackElo "1797"]
[Annotator "NA RC"]
[PlyCount "149"]
[EventDate "2024.04.14"]
[EventType "swiss"]
[EventCountry "FRA"]
[SourceTitle "playchess.com"]
[Source "ChessBase"]
[SourceQuality "1"]
[TimeControl "5400+30"]

1. d4 {[%emt 0:00:04]} d5 {[%emt 0:00:11]} 2. c4 {[%emt 0:00:11]} c6 {[%emt 0:00:06]} 3. cxd5 {[%emt 0:00:47]} cxd5 {[%emt 0:00:21]} 4. Nc3 {[%emt 0:00:29]} Nf6 {[%emt 0:05:47]} 5. Bf4 {[%emt 0:05:56]} a6 {[%emt 0:05:36]} 6. Nf3 {[%emt 0:03:52]} Nc6 {[%emt 0:03:02]} 7. h3 {[%emt 0:04:49]} e6 {[%emt 0:09:58]} 8. e3 {[%emt 0:06:17]} Bb4 {[%emt 0:02:25]} 9. Bd3 {[%emt 0:03:15]} Ne4 {[%emt 0:10:37]} 10. Qb3 {[%emt 0:05:19]} O-O {[%emt 0:04:52]} 11. O-O {[%emt 0:02:36]} Nxc3 {[%emt 0:00:59]} 12. bxc3 {[%emt 0:00:09]} Bd6 {[%emt 0:04:13]} 13. Bxd6 {[%emt 0:07:15]} Qxd6 {[%emt 0:00:19]} 14. e4 {[%emt 0:02:10]} Na5 {[%emt 0:08:08]} 15. Qc2 {[%emt 0:04:04]} h6 {[%emt 0:05:06]} 16. Ne5 {[%emt 0:05:20]} b5 {[%emt 0:03:34]} 17. Rfb1 {[%emt 0:07:47]} Nc4 {[%emt 0:05:11]} 18. Nxc4 {[%emt 0:06:17]} dxc4 {[%emt 0:00:14]} 19. Be2 {[%emt 0:00:14]} Bb7 {[%emt 0:05:00]} 20. a4 {[%emt 0:04:32]} Qf4 {[%emt 0:02:45]} 21. Bf3 {[%emt 0:00:46]} f5 {[%emt 0:02:27]} 22. Re1 {[%emt 0:01:22]} fxe4 {[%emt 0:06:13]} 23. Bxe4 {[%emt 0:01:13]} Bd5 {[%emt 0:04:02]} 24. f3 {[%emt 0:05:01]} Rae8 {[%emt 0:03:14]} 25. axb5 {[%emt 0:05:28]} axb5 {[%emt 0:00:34]} 26. Ra5 {[%emt 0:02:02]} Rb8 {[%emt 0:02:14]} 27. Qb2 {[%emt 0:00:57]} Qg3 {[%emt 0:00:39]} 28. Qe2 {[%emt 0:03:32]} Qg5 {[%emt 0:04:27]} 29. Rb1 {[%emt 0:03:09]} Bxe4 {[%emt 0:00:36]} 30. Qxe4 {[%emt 0:00:08]} Rf6 {[%emt 0:01:18]} 31. Qe5 {[%emt 0:02:36]} Qxe5 {[%emt 0:01:09]} 32. dxe5 {[%emt 0:00:05]} Rf5 {[%emt 0:00:38]} 33. Rbxb5 {[%emt 0:00:12]} Rd8 {[%emt 0:00:32]} 34. Rc5 {[%emt 0:00:29]} Rd1+ {[%emt 0:00:10]} 35. Kf2 {[%emt 0:01:57]} Rd2+ {[%emt 0:00:04]} 36. Kf1 {[%emt 0:00:09]} Rf4 {[%emt 0:00:36]} 37. Ra4 {[%emt 0:01:38]} Rd5 {[%emt 0:00:30]} 38. Raxc4 {[%emt 0:00:50]} Rxc4 {[%emt 0:00:19]} 39. Rxc4 {[%emt 0:00:04]} Rxe5 {[%emt 0:00:03]} 40. Re4 {[%emt 0:00:44]} Rc5 {[%emt 0:00:19]} 41. c4 {[%emt 0:00:07]} Kf7 {[%emt 0:00:16]} 42. Ke2 {[%emt 0:00:18]} e5 {[%emt 0:01:20]} 43. Kd3 {[%emt 0:00:58]} g5 {[%emt 0:01:00]} 44. Re2 {[%emt 0:01:50]} Kf6 {[%emt 0:00:40]} 45. g4 {[%emt 0:01:35]} Ra5 {[%emt 0:00:30]} 46. Rc2 {[%emt 0:00:48]} Rc5 {[%emt 0:00:34]} 47. Ra2 {[%emt 0:00:12]} Rc6 {[%emt 0:00:30]} 48. Ra5 {[%emt 0:00:32]} Ke6 {[%emt 0:01:12]} 49. Ra8 {[%emt 0:02:00]} Kf6 {[%emt 0:00:00]} 50. Kc3 {[%emt 0:00:57]} Ke6 {[%emt 0:00:12]} 51. Kb4 {[%emt 0:00:55]} Rb6+ {[%emt 0:00:32]} 52. Kc5 {[%emt 0:00:13]} Rb3 {[%emt 0:00:22]} 53. Ra6+ {[%emt 0:00:21]} Kd7 {[%emt 0:00:43]} 54. Rxh6 {[%emt 0:00:15]} Rxf3 {[%emt 0:00:06]} 55. Kd5 {[%emt 0:00:08]} Rf4 {[%emt 0:00:55]} 56. Rh7+ {[%emt 0:00:30]} Ke8 {[%emt 0:00:37]} 57. Kxe5 {[%emt 0:01:46]} Rxc4 {[%emt 0:00:11]} 58. Kf6 {[%emt 0:00:10]} Rc5 {[%emt 0:00:42]} 59. Rh8+ {[%emt 0:00:12]} Kd7 {[%emt 0:00:09]} 60. Rh5 {[%emt 0:00:03]} Rc6+ {[%emt 0:00:30]} 61. Kxg5 {[%emt 0:00:05]} Ke7 {[%emt 0:00:15]} 62. Rh7+ {[%emt 0:00:54]} Kf8 {[%emt 0:00:07]} 63. Kh5 {[%emt 0:00:09]} Rc5+ {[%emt 0:00:59]} 64. g5 {[%emt 0:00:05]} Ra5 {[%emt 0:00:23]} 65. h4 {[%emt 0:00:16]} Rc5 {[%emt 0:00:32]} 66. Ra7 {[%emt 0:00:51]} Kg8 {[%emt 0:00:44]} 67. Kh6 {[%emt 0:00:16]} Rc6+ {[%emt 0:00:02]} 68. g6 {[%emt 0:00:06]} Rc8 {[%emt 0:00:09]} 69. h5 {[%emt 0:01:33]} Rb8 {[%emt 0:00:55]} 70. Ra5 {[%emt 0:00:31]} Rc8 {[%emt 0:00:25]} 71. Kg5 {[%emt 0:00:14]} Kg7 {[%emt 0:01:04]} 72. h6+ {[%emt 0:00:28]} Kh8 {[%emt 0:00:16]} 73. h7 {[%emt 0:01:06]} Kg7 {[%emt 0:00:52]} 74. Ra7+ {[%emt 0:00:07]} Kh8 {[%emt 0:00:12]} 75. Kh6 {[%emt 0:00:11]} 1-0

[Event "French-ch U16-U18 2024"]
[Site "Agen"]
[Date "2024.04.15"]
[Round "3.12"]
[White "Deladerriere, Calypso"]
[Black "Dufeux, Elia"]
[Result "1-0"]
[ECO "B13"]
[WhiteElo "1935"]
[BlackElo "1728"]
[Annotator "NA RC"]
[PlyCount "63"]
[EventDate "2024.04.14"]
[EventType "swiss"]
[EventCountry "FRA"]
[SourceTitle "playchess.com"]
[Source "ChessBase"]
[SourceQuality "1"]
[TimeControl "5400+30"]

1. e4 {[%emt 0:00:06]} c6 {[%emt 0:00:05]} 2. d4 {[%emt 0:00:12]} d5 {[%emt 0:00:18]} 3. exd5 {[%emt 0:00:21]} cxd5 {[%emt 0:00:32]} 4. Nf3 {[%emt 0:00:21]} Nc6 {[%emt 0:00:38]} 5. Ne5 {[%emt 0:00:24]} e6 {[%emt 0:01:36]} 6. Bb5 {[%emt 0:01:29]} Bd7 {[%emt 0:08:58]} 7. Nxd7 {[%emt 0:00:32]} Qxd7 {[%emt 0:00:09]} 8. c3 {[%emt 0:00:24]} Nf6 {[%emt 0:01:24]} 9. O-O {[%emt 0:01:05]} Bd6 {[%emt 0:02:07]} 10. Nd2 {[%emt 0:02:55]} O-O {[%emt 0:02:17]} 11. Re1 {[%emt 0:00:53]} a6 {[%emt 0:02:24]} 12. Bd3 {[%emt 0:00:36]} Qc7 {[%emt 0:02:00]} 13. Nf3 {[%emt 0:01:08]} Rfe8 {[%emt 0:05:47]} 14. Bg5 {[%emt 0:02:39]} Nd7 {[%emt 0:04:00]} 15. Rc1 {[%emt 0:06:59]} Nf8 {[%emt 0:07:07]} 16. c4 {[%emt 0:04:56]} dxc4 {[%emt 0:03:44]} 17. Bxc4 {[%emt 0:02:15]} Qd7 {[%emt 0:11:04]} 18. d5 {[%emt 0:04:01]} exd5 {[%emt 0:03:13]} 19. Bxd5 {[%emt 0:07:36]} Rxe1+ {[%emt 0:04:12]} 20. Nxe1 {[%emt 0:00:37]} Rc8 {[%emt 0:05:16]} 21. Nf3 {[%emt 0:05:21]} h6 {[%emt 0:05:14]} 22. Be3 {[%emt 0:01:36]} Be7 {[%emt 0:11:35]} 23. Qb3 {[%emt 0:03:41]} Bf6 {[%emt 0:03:29]} 24. Rd1 {[%emt 0:07:11]} Qe7 {[%emt 0:02:46]} 25. Nd2 {[%emt 0:04:02]} Ng6 {[%emt 0:05:19]} 26. Ne4 {[%emt 0:08:49]} Be5 {[%emt 0:02:41]} 27. Bc5 {[%emt 0:01:30]} Qc7 {[%emt 0:03:51]} 28. Nd6 {[%emt 0:06:39]} Bxd6 {[%emt 0:01:46]} 29. Bxd6 {[%emt 0:00:25]} Qd7 {[%emt 0:00:25]} 30. Qg3 {[%emt 0:02:29]} Qf5 {[%emt 0:00:47]} 31. h3 {[%emt 0:04:57]} Qd7 {[%emt 0:00:42]} 32. Qxg6 {[%emt 0:00:55]} 1-0